[Event "January 2 Early 2024"]
[Site "https://www.chess.com"]
[Date "2024.01.02"]
[Round "9"]
[White "Kabanov, Nikolai"]
[Black "Kekic, Armin"]
[Result "1-0"]
[Board "148"]
[TimeControl "180+1"]
[WhiteFideId "4127820"]
[BlackFideId "14401274"]
[WhiteElo "2457"]
[BlackElo "2309"]
[WhiteTeam "RUS"]
[BlackTeam "BIH"]
[WhiteClock "0:00:13"]
[BlackClock "0:00:18"]

1. e4 {[%clk 0:03:00]}  c5 {[%clk 0:02:58]} 2. Nf3 {[%clk 0:03:00]}  e6 {[%clk 0:02:59]} 3. c3 {[%clk 0:02:57]}  d5 {[%clk 0:02:56]} 4. exd5 {[%clk 0:02:52]}  Qxd5 {[%clk 0:02:57]} 5. d4 {[%clk 0:02:50]}  Nc6 {[%clk 0:02:58]} 6. Be2 {[%clk 0:02:45]}  Nf6 {[%clk 0:02:57]} 7. Na3 {[%clk 0:02:44]}  cxd4 {[%clk 0:02:57]} 8. Nb5 {[%clk 0:02:43]}  Qd8 {[%clk 0:02:58]} 9. Nfxd4 {[%clk 0:02:38]}  Nxd4 {[%clk 0:02:56]} 10. Qxd4 {[%clk 0:02:37]}  a6 {[%clk 0:02:51]} 11. Qxd8+ {[%clk 0:02:34]}  Kxd8 {[%clk 0:02:52]} 12. Nd4 {[%clk 0:02:30]}  Bc5 {[%clk 0:02:46]} 13. Bf4 {[%clk 0:02:15]}  Nd5 {[%clk 0:02:40]} 14. Bg3 {[%clk 0:02:02]}  Bxd4 {[%clk 0:02:40]} 15. cxd4 {[%clk 0:02:02]}  Bd7 {[%clk 0:02:40]} 16. Rc1 {[%clk 0:01:48]}  Rc8 {[%clk 0:02:39]} 17. Kd2 {[%clk 0:01:47]}  Rxc1 {[%clk 0:02:37]} 18. Rxc1 {[%clk 0:01:48]}  Bc6 {[%clk 0:02:37]} 19. Be5 {[%clk 0:01:44]}  f6 {[%clk 0:02:33]} 20. Bg3 {[%clk 0:01:43]}  Kd7 {[%clk 0:02:33]} 21. h4 {[%clk 0:01:38]}  h6 {[%clk 0:02:26]} 22. h5 {[%clk 0:01:32]}  Ne7 {[%clk 0:02:26]} 23. f3 {[%clk 0:01:30]}  Nf5 {[%clk 0:02:22]} 24. Bf2 {[%clk 0:01:29]}  Rc8 {[%clk 0:02:20]} 25. g4 {[%clk 0:01:24]}  Nd6 {[%clk 0:02:20]} 26. a3 {[%clk 0:01:19]}  Bd5 {[%clk 0:02:15]} 27. Rc5 {[%clk 0:01:12]}  Nc4+ {[%clk 0:01:42]} 28. Kc3 {[%clk 0:01:02]}  Rxc5 {[%clk 0:01:41]} 29. dxc5 {[%clk 0:01:01]}  Ne5 {[%clk 0:01:42]} 30. f4 {[%clk 0:00:57]}  Bf3 {[%clk 0:01:23]} 31. Bxf3 {[%clk 0:00:48]}  Nxf3 {[%clk 0:01:22]} 32. Kd3 {[%clk 0:00:46]}  Nh2 {[%clk 0:01:21]} 33. g5 {[%clk 0:00:41]}  Ng4 {[%clk 0:01:13]} 34. Bd4 {[%clk 0:00:33]}  e5 {[%clk 0:01:07]} 35. fxe5 {[%clk 0:00:30]}  fxe5 {[%clk 0:01:07]} 36. gxh6 {[%clk 0:00:29]}  gxh6 {[%clk 0:01:03]} 37. Be3 {[%clk 0:00:27]}  Ke6 {[%clk 0:01:02]} 38. b4 {[%clk 0:00:22]}  Kd5 {[%clk 0:01:01]} 39. Bd2 {[%clk 0:00:21]}  e4+ {[%clk 0:01:00]} 40. Ke2 {[%clk 0:00:21]}  Kc4 {[%clk 0:00:58]} 41. Bc1 {[%clk 0:00:16]}  Kb3 {[%clk 0:00:55]} 42. Kf1 {[%clk 0:00:14]}  Kc2 {[%clk 0:00:55]} 43. Bf4 {[%clk 0:00:14]}  Kb2 {[%clk 0:00:54]} 44. a4 {[%clk 0:00:12]}  Kb3 {[%clk 0:00:54]} 45. b5 {[%clk 0:00:12]}  axb5 {[%clk 0:00:42]} 46. axb5 {[%clk 0:00:13]}  Nf6 {[%clk 0:00:37]} 47. c6 {[%clk 0:00:13]}  bxc6 {[%clk 0:00:37]} 48. bxc6 {[%clk 0:00:14]}  Nd5 {[%clk 0:00:23]} 49. c7 {[%clk 0:00:13]}  Ne7 {[%clk 0:00:23]} 50. Bxh6 {[%clk 0:00:13]}  Kc4 {[%clk 0:00:18]} 51. Bg5 {[%clk 0:00:13]} 1-0

[Event "January 2 Early 2024"]
[Site "https://www.chess.com"]
[Date "2024.01.02"]
[Round "9"]
[White "Borda Rodas, Anapaola S."]
[Black "Hartikainen, Jarmo"]
[Result "0-1"]
[Board "151"]
[TimeControl "180+1"]
[WhiteFideId "152781"]
[BlackFideId "503134"]
[WhiteElo "2349"]
[BlackElo "2151"]
[WhiteTeam "ARG"]
[BlackTeam "FIN"]
[WhiteClock "0:00:00"]
[BlackClock "0:00:16"]

1. e4 {[%clk 0:03:00]}  c5 {[%clk 0:02:58]} 2. Nf3 {[%clk 0:03:00]}  Nc6 {[%clk 0:02:58]} 3. d4 {[%clk 0:03:00]}  cxd4 {[%clk 0:02:58]} 4. Nxd4 {[%clk 0:03:01]}  Nf6 {[%clk 0:02:59]} 5. Nc3 {[%clk 0:03:01]}  d6 {[%clk 0:02:59]} 6. Be2 {[%clk 0:02:54]}  e5 {[%clk 0:02:59]} 7. Nf3 {[%clk 0:02:53]}  h6 {[%clk 0:02:57]} 8. O-O {[%clk 0:02:52]}  Be6 {[%clk 0:02:57]} 9. Nd2 {[%clk 0:02:51]}  d5 {[%clk 0:02:54]} 10. exd5 {[%clk 0:02:51]}  Nxd5 {[%clk 0:02:54]} 11. Nc4 {[%clk 0:02:40]}  Nxc3 {[%clk 0:02:45]} 12. bxc3 {[%clk 0:02:41]}  Be7 {[%clk 0:02:39]} 13. Rb1 {[%clk 0:02:37]}  Qc7 {[%clk 0:02:30]} 14. Be3 {[%clk 0:02:29]}  O-O {[%clk 0:02:25]} 15. Qc1 {[%clk 0:02:28]}  Bf6 {[%clk 0:02:02]} 16. Qb2 {[%clk 0:02:25]}  b6 {[%clk 0:01:54]} 17. Na3 {[%clk 0:02:13]}  e4 {[%clk 0:01:40]} 18. Nb5 {[%clk 0:02:12]}  Qe5 {[%clk 0:01:38]} 19. Nd4 {[%clk 0:02:04]}  Na5 {[%clk 0:01:29]} 20. a4 {[%clk 0:01:23]}  Rac8 {[%clk 0:01:26]} 21. Rbd1 {[%clk 0:01:12]}  Bc4 {[%clk 0:01:25]} 22. Rfe1 {[%clk 0:01:03]}  Bxe2 {[%clk 0:01:23]} 23. Nxe2 {[%clk 0:01:04]}  Nc4 {[%clk 0:01:22]} 24. Qb5 {[%clk 0:00:57]}  Nxe3 {[%clk 0:01:20]} 25. fxe3 {[%clk 0:00:56]}  Qxb5 {[%clk 0:01:19]} 26. axb5 {[%clk 0:00:57]}  Bxc3 {[%clk 0:01:19]} 27. Rf1 {[%clk 0:00:51]}  Be5 {[%clk 0:01:04]} 28. Nd4 {[%clk 0:00:33]}  Bxd4 {[%clk 0:00:36]} 29. Rxd4 {[%clk 0:00:34]}  Rfd8 {[%clk 0:00:36]} 30. Rxe4 {[%clk 0:00:29]}  Rxc2 {[%clk 0:00:31]} 31. Re7 {[%clk 0:00:07]}  f6 {[%clk 0:00:30]} 32. Re4 {[%clk 0:00:03]}  Rdd2 {[%clk 0:00:24]} 33. Rg4 {[%clk 0:00:03]}  Kf7 {[%clk 0:00:20]} 34. e4 {[%clk 0:00:03]}  h5 {[%clk 0:00:18]} 35. Rg3 {[%clk 0:00:00]}  Rb2 {[%clk 0:00:16]} 0-1

[Event "January 2 Early 2024"]
[Site "https://www.chess.com"]
[Date "2024.01.02"]
[Round "9"]
[White "Musalov, Ruslan"]
[Black "Dargan, Paul A G"]
[Result "1-0"]
[Board "155"]
[TimeControl "180+1"]
[WhiteFideId "4141490"]
[BlackFideId "416762"]
[WhiteElo "2421"]
[BlackElo "2189"]
[WhiteTeam "RUS"]
[BlackTeam "ENG"]
[WhiteClock "0:01:25"]
[BlackClock "0:01:36"]

1. e4 {[%clk 0:02:53]}  c5 {[%clk 0:02:59]} 2. Nf3 {[%clk 0:02:52]}  g6 {[%clk 0:02:58]} 3. d4 {[%clk 0:02:52]}  cxd4 {[%clk 0:02:58]} 4. Nxd4 {[%clk 0:02:53]}  Bg7 {[%clk 0:02:58]} 5. Nc3 {[%clk 0:02:54]}  Nc6 {[%clk 0:02:57]} 6. Be3 {[%clk 0:02:54]}  Nf6 {[%clk 0:02:50]} 7. Bc4 {[%clk 0:02:54]}  O-O {[%clk 0:02:33]} 8. Bb3 {[%clk 0:02:54]}  d5 {[%clk 0:02:29]} 9. exd5 {[%clk 0:02:51]}  Nb4 {[%clk 0:02:29]} 10. Nf3 {[%clk 0:02:35]}  b6 {[%clk 0:02:27]} 11. a3 {[%clk 0:02:30]}  Na6 {[%clk 0:02:09]} 12. O-O {[%clk 0:02:30]}  Bb7 {[%clk 0:02:08]} 13. Bd4 {[%clk 0:02:20]}  Nc7 {[%clk 0:01:59]} 14. Ne5 {[%clk 0:01:53]}  Ncxd5 {[%clk 0:01:53]} 15. Nxd5 {[%clk 0:01:52]}  Nxd5 {[%clk 0:01:51]} 16. Qg4 {[%clk 0:01:39]}  Nf6 {[%clk 0:01:47]} 17. Qf4 {[%clk 0:01:33]}  Qc7 {[%clk 0:01:45]} 18. Nxg6 {[%clk 0:01:26]}  hxg6 {[%clk 0:01:36]} 19. Qxc7 {[%clk 0:01:25]} 1-0

[Event "January 2 Early 2024"]
[Site "https://www.chess.com"]
[Date "2024.01.02"]
[Round "9"]
[White "Tagliati, Eleonore"]
[Black "Lima, Artur Tin Lun Dai"]
[Result "0-1"]
[Board "158"]
[TimeControl "180+1"]
[WhiteFideId "45172234"]
[BlackFideId "22773150"]
[WhiteElo "2180"]
[BlackElo "2339"]
[WhiteTeam "FRA"]
[BlackTeam "BRA"]
[WhiteClock "0:01:54"]
[BlackClock "0:02:23"]

1. e4 {[%clk 0:03:00]}  d6 {[%clk 0:02:55]} 2. d4 {[%clk 0:03:00]}  Nf6 {[%clk 0:02:54]} 3. Nc3 {[%clk 0:03:00]}  e5 {[%clk 0:02:54]} 4. Nf3 {[%clk 0:03:00]}  Nbd7 {[%clk 0:02:54]} 5. Rg1 {[%clk 0:03:00]}  h5 {[%clk 0:02:50]} 6. Bg5 {[%clk 0:02:54]}  Be7 {[%clk 0:02:50]} 7. h4 {[%clk 0:02:52]}  c6 {[%clk 0:02:49]} 8. Qd2 {[%clk 0:02:50]}  b6 {[%clk 0:02:49]} 9. O-O-O {[%clk 0:02:47]}  Qc7 {[%clk 0:02:49]} 10. a3 {[%clk 0:02:37]}  Bb7 {[%clk 0:02:49]} 11. Bc4 {[%clk 0:02:34]}  b5 {[%clk 0:02:40]} 12. Bb3 {[%clk 0:02:28]}  a5 {[%clk 0:02:41]} 13. d5 {[%clk 0:02:25]}  b4 {[%clk 0:02:36]} 14. dxc6 {[%clk 0:02:17]}  Bxc6 {[%clk 0:02:33]} 15. Nd5 {[%clk 0:02:17]}  Bxd5 {[%clk 0:02:31]} 16. exd5 {[%clk 0:02:14]}  bxa3 {[%clk 0:02:29]} 17. bxa3 {[%clk 0:02:13]}  Qc5 {[%clk 0:02:26]} 18. Bxf6 {[%clk 0:01:59]}  Qxa3+ {[%clk 0:02:24]} 19. Kb1 {[%clk 0:01:59]}  Nxf6 {[%clk 0:02:24]} 20. Qc1 {[%clk 0:01:56]}  Qb4 {[%clk 0:02:23]} 21. Nd2 {[%clk 0:01:54]}  a4 {[%clk 0:02:23]} 0-1

[Event "January 2 Early 2024"]
[Site "https://www.chess.com"]
[Date "2024.01.02"]
[Round "9"]
[White "Pavlidou, Ekaterini"]
[Black "Thiel, Thomas"]
[Result "0-1"]
[Board "159"]
[TimeControl "180+1"]
[WhiteFideId "4213262"]
[BlackFideId "4615964"]
[WhiteElo "2336"]
[BlackElo "2177"]
[WhiteTeam "GRE"]
[BlackTeam "GER"]
[WhiteClock "0:01:42"]
[BlackClock "0:01:59"]

1. d4 {[%clk 0:03:00]}  d5 {[%clk 0:02:59]} 2. c4 {[%clk 0:03:01]}  dxc4 {[%clk 0:03:00]} 3. e3 {[%clk 0:03:00]}  e5 {[%clk 0:02:59]} 4. Bxc4 {[%clk 0:03:00]}  Nc6 {[%clk 0:02:58]} 5. Nf3 {[%clk 0:03:00]}  e4 {[%clk 0:02:58]} 6. Nfd2 {[%clk 0:02:55]}  Qg5 {[%clk 0:02:58]} 7. Nxe4 {[%clk 0:02:49]}  Qxg2 {[%clk 0:02:57]} 8. Ng3 {[%clk 0:02:49]}  Qh3 {[%clk 0:02:57]} 9. Nc3 {[%clk 0:02:40]}  Bd6 {[%clk 0:02:55]} 10. Nce4 {[%clk 0:02:34]}  Bg4 {[%clk 0:02:39]} 11. Nxd6+ {[%clk 0:02:34]}  cxd6 {[%clk 0:02:36]} 12. Qb3 {[%clk 0:02:33]}  O-O-O {[%clk 0:02:36]} 13. Bd5 {[%clk 0:02:28]}  Nge7 {[%clk 0:02:33]} 14. Bxf7 {[%clk 0:02:23]}  Kb8 {[%clk 0:02:32]} 15. Bd2 {[%clk 0:02:14]}  h5 {[%clk 0:02:23]} 16. Rc1 {[%clk 0:02:11]}  h4 {[%clk 0:02:22]} 17. Ne2 {[%clk 0:02:00]}  Qf3 {[%clk 0:02:03]} 18. Kd1 {[%clk 0:01:48]}  Qxe2+ {[%clk 0:02:02]} 19. Kc2 {[%clk 0:01:42]}  Bf5+ {[%clk 0:01:59]} 0-1

[Event "January 2 Early 2024"]
[Site "https://www.chess.com"]
[Date "2024.01.02"]
[Round "9"]
[White "Gerbelli Neto, Eduardo"]
[Black "Jing, Andrew"]
[Result "1-0"]
[Board "160"]
[TimeControl "180+1"]
[WhiteFideId "2103281"]
[BlackFideId "30984076"]
[WhiteElo "2332"]
[BlackElo "2147"]
[WhiteTeam "BRA"]
[BlackTeam "USA"]
[WhiteClock "0:01:46"]
[BlackClock "0:02:10"]

1. e4 {[%clk 0:03:00]}  c5 {[%clk 0:02:57]} 2. Nc3 {[%clk 0:03:00]}  d6 {[%clk 0:02:57]} 3. f4 {[%clk 0:03:01]}  Nc6 {[%clk 0:02:57]} 4. Nf3 {[%clk 0:03:02]}  f6 {[%clk 0:02:56]} 5. Bc4 {[%clk 0:03:00]}  e6 {[%clk 0:02:55]} 6. d4 {[%clk 0:02:59]}  cxd4 {[%clk 0:02:55]} 7. Nxd4 {[%clk 0:02:59]}  Nxd4 {[%clk 0:02:55]} 8. Qxd4 {[%clk 0:02:59]}  Nh6 {[%clk 0:02:53]} 9. O-O {[%clk 0:02:52]}  Nf7 {[%clk 0:02:50]} 10. f5 {[%clk 0:02:48]}  e5 {[%clk 0:02:49]} 11. Qd3 {[%clk 0:02:45]}  Be7 {[%clk 0:02:48]} 12. Bxf7+ {[%clk 0:02:40]}  Kxf7 {[%clk 0:02:48]} 13. Qd5+ {[%clk 0:02:39]}  Kf8 {[%clk 0:02:47]} 14. Be3 {[%clk 0:02:36]}  Bd7 {[%clk 0:02:46]} 15. Qxb7 {[%clk 0:02:19]}  Rb8 {[%clk 0:02:39]} 16. Qxa7 {[%clk 0:02:20]}  Rxb2 {[%clk 0:02:39]} 17. Nd5 {[%clk 0:02:11]}  Rxc2 {[%clk 0:02:37]} 18. Rab1 {[%clk 0:02:11]}  Kf7 {[%clk 0:02:36]} 19. Rb7 {[%clk 0:02:09]}  Qa8 {[%clk 0:02:16]} 20. Rxd7 {[%clk 0:02:00]}  Qxa7 {[%clk 0:02:15]} 21. Rxa7 {[%clk 0:02:00]}  Rb8 {[%clk 0:02:15]} 22. Rxe7+ {[%clk 0:01:59]}  Kf8 {[%clk 0:02:15]} 23. Rc7 {[%clk 0:01:53]}  Rxa2 {[%clk 0:02:10]} 24. Rfc1 {[%clk 0:01:46]} 1-0

[Event "January 2 Early 2024"]
[Site "https://www.chess.com"]
[Date "2024.01.02"]
[Round "9"]
[White "Mesa Cruz, Juan Carlos"]
[Black "Novikova, Margarita"]
[Result "0-1"]
[Board "161"]
[TimeControl "180+1"]
[WhiteFideId "6423400"]
[BlackFideId "14109689"]
[WhiteElo "2298"]
[BlackElo "2123"]
[WhiteTeam "DOM"]
[BlackTeam "GER"]
[WhiteClock "0:00:00"]
[BlackClock "0:00:51"]

1. e4 {[%clk 0:02:29]}  e5 {[%clk 0:02:58]} 2. Nf3 {[%clk 0:02:25]}  Nc6 {[%clk 0:02:55]} 3. Bc4 {[%clk 0:02:23]}  Bc5 {[%clk 0:02:53]} 4. c3 {[%clk 0:02:13]}  Nf6 {[%clk 0:02:51]} 5. d3 {[%clk 0:02:01]}  d5 {[%clk 0:02:44]} 6. exd5 {[%clk 0:01:56]}  Nxd5 {[%clk 0:02:45]} 7. b4 {[%clk 0:01:53]}  Bb6 {[%clk 0:02:34]} 8. a4 {[%clk 0:01:47]}  a6 {[%clk 0:02:07]} 9. Nbd2 {[%clk 0:01:40]}  O-O {[%clk 0:02:02]} 10. Ne4 {[%clk 0:01:37]}  h6 {[%clk 0:01:55]} 11. O-O {[%clk 0:01:26]}  Kh8 {[%clk 0:01:52]} 12. Re1 {[%clk 0:00:48]}  f5 {[%clk 0:01:51]} 13. Ng3 {[%clk 0:00:29]}  Nxc3 {[%clk 0:01:29]} 14. Qb3 {[%clk 0:00:25]}  e4 {[%clk 0:01:22]} 15. dxe4 {[%clk 0:00:07]}  Nxe4 {[%clk 0:01:20]} 16. Be3 {[%clk 0:00:05]}  Bxe3 {[%clk 0:01:14]} 17. Qxe3 {[%clk 0:00:06]}  Nd6 {[%clk 0:01:11]} 18. Bd5 {[%clk 0:00:06]}  f4 {[%clk 0:01:11]} 19. Qd2 {[%clk 0:00:02]}  fxg3 {[%clk 0:01:10]} 20. Bxc6 {[%clk 0:00:03]}  gxf2+ {[%clk 0:01:09]} 21. Kxf2 {[%clk 0:00:02]}  bxc6 {[%clk 0:01:09]} 22. Kg1 {[%clk 0:00:03]}  Bg4 {[%clk 0:01:07]} 23. Ne5 {[%clk 0:00:03]}  Bf5 {[%clk 0:01:04]} 24. Nxc6 {[%clk 0:00:02]}  Qg5 {[%clk 0:01:02]} 25. Qc3 {[%clk 0:00:01]}  Rfe8 {[%clk 0:01:01]} 26. Ne5 {[%clk 0:00:01]}  Be4 {[%clk 0:00:58]} 27. Rxe4 {[%clk 0:00:01]}  Nxe4 {[%clk 0:00:55]} 28. Nf7+ {[%clk 0:00:01]}  Kg8 {[%clk 0:00:55]} 29. Qc4 {[%clk 0:00:00]}  Qe3+ {[%clk 0:00:51]} 0-1

[Event "January 2 Early 2024"]
[Site "https://www.chess.com"]
[Date "2024.01.02"]
[Round "9"]
[White "Subramanian, Anusha"]
[Black "Limontaite, Simona"]
[Result "0-1"]
[Board "162"]
[TimeControl "180+1"]
[WhiteFideId "477710"]
[BlackFideId "12802506"]
[WhiteElo "2120"]
[BlackElo "2289"]
[WhiteTeam "ENG"]
[BlackTeam "LTU"]
[WhiteClock "0:00:06"]
[BlackClock "0:01:07"]

1. e4 {[%clk 0:03:00]}  c5 {[%clk 0:02:54]} 2. Nf3 {[%clk 0:03:00]}  Nc6 {[%clk 0:02:54]} 3. d4 {[%clk 0:03:00]}  cxd4 {[%clk 0:02:54]} 4. Nxd4 {[%clk 0:03:00]}  Nf6 {[%clk 0:02:55]} 5. Nc3 {[%clk 0:03:00]}  e5 {[%clk 0:02:56]} 6. Nb3 {[%clk 0:02:56]}  Bb4 {[%clk 0:02:55]} 7. f3 {[%clk 0:02:54]}  d5 {[%clk 0:02:50]} 8. exd5 {[%clk 0:02:50]}  Bxc3+ {[%clk 0:02:49]} 9. bxc3 {[%clk 0:02:49]}  Qxd5 {[%clk 0:02:50]} 10. Qxd5 {[%clk 0:02:44]}  Nxd5 {[%clk 0:02:50]} 11. Bd2 {[%clk 0:02:40]}  O-O {[%clk 0:02:48]} 12. Bc4 {[%clk 0:02:36]}  Rd8 {[%clk 0:02:45]} 13. Kf2 {[%clk 0:02:27]}  b6 {[%clk 0:02:45]} 14. Rad1 {[%clk 0:02:23]}  Bb7 {[%clk 0:02:43]} 15. Bg5 {[%clk 0:02:19]}  Nde7 {[%clk 0:02:27]} 16. Rhe1 {[%clk 0:02:02]}  Kf8 {[%clk 0:02:24]} 17. Bxe7+ {[%clk 0:01:54]}  Kxe7 {[%clk 0:02:25]} 18. f4 {[%clk 0:01:53]}  Rxd1 {[%clk 0:02:25]} 19. Rxd1 {[%clk 0:01:52]}  exf4 {[%clk 0:02:25]} 20. Nd4 {[%clk 0:01:40]}  g6 {[%clk 0:02:22]} 21. h4 {[%clk 0:00:49]}  Ne5 {[%clk 0:02:11]} 22. Bb3 {[%clk 0:00:40]}  Ng4+ {[%clk 0:02:08]} 23. Kg1 {[%clk 0:00:34]}  Rc8 {[%clk 0:02:03]} 24. Re1+ {[%clk 0:00:30]}  Ne3 {[%clk 0:01:54]} 25. Nb5 {[%clk 0:00:25]}  a6 {[%clk 0:01:44]} 26. Nd4 {[%clk 0:00:19]}  Rxc3 {[%clk 0:01:43]} 27. Ne2 {[%clk 0:00:19]}  Nxg2 {[%clk 0:01:38]} 28. Rd1 {[%clk 0:00:13]}  Re3 {[%clk 0:01:36]} 29. Kf2 {[%clk 0:00:12]}  Nxh4 {[%clk 0:01:32]} 30. Nxf4 {[%clk 0:00:11]}  Rf3+ {[%clk 0:01:33]} 31. Ke2 {[%clk 0:00:10]}  Rxf4 {[%clk 0:01:33]} 32. Rd3 {[%clk 0:00:09]}  Re4+ {[%clk 0:01:31]} 33. Kd2 {[%clk 0:00:09]}  f5 {[%clk 0:01:31]} 34. Rc3 {[%clk 0:00:08]}  Rd4+ {[%clk 0:01:19]} 35. Ke3 {[%clk 0:00:08]}  Rd7 {[%clk 0:01:15]} 36. Bg8 {[%clk 0:00:07]}  Kf6 {[%clk 0:01:12]} 37. Kf4 {[%clk 0:00:07]}  g5+ {[%clk 0:01:12]} 38. Kg3 {[%clk 0:00:07]}  h5 {[%clk 0:01:10]} 39. Re3 {[%clk 0:00:05]}  f4+ {[%clk 0:01:10]} 40. Kf2 {[%clk 0:00:05]}  fxe3+ {[%clk 0:01:08]} 41. Kxe3 {[%clk 0:00:06]}  g4 {[%clk 0:01:06]} 42. Bb3 {[%clk 0:00:05]}  g3 {[%clk 0:01:07]} 43. Kf4 {[%clk 0:00:05]}  g2 {[%clk 0:01:07]} 44. Kg3 {[%clk 0:00:05]}  g1=Q+ {[%clk 0:01:07]} 45. Kxh4 {[%clk 0:00:06]}  Qg4# {[%clk 0:01:07]} 0-1

[Event "January 2 Early 2024"]
[Site "https://www.chess.com"]
[Date "2024.01.02"]
[Round "9"]
[White "Brandao, Marcius Gomes"]
[Black "Eggleston, Thomas A"]
[Result "1-0"]
[Board "163"]
[TimeControl "180+1"]
[WhiteFideId "2124980"]
[BlackFideId "412139"]
[WhiteElo "2071"]
[BlackElo "2278"]
[WhiteTeam "BRA"]
[BlackTeam "ENG"]
[WhiteClock "0:00:10"]
[BlackClock "0:00:00"]

1. d4 {[%clk 0:03:00]}  e6 {[%clk 0:03:00]} 2. c4 {[%clk 0:03:01]}  f5 {[%clk 0:02:59]} 3. g3 {[%clk 0:03:00]}  Nf6 {[%clk 0:03:00]} 4. Bg2 {[%clk 0:03:00]}  Be7 {[%clk 0:03:00]} 5. Nf3 {[%clk 0:03:00]}  O-O {[%clk 0:03:00]} 6. O-O {[%clk 0:03:00]}  d6 {[%clk 0:03:00]} 7. b3 {[%clk 0:02:53]}  Ne4 {[%clk 0:02:59]} 8. Bb2 {[%clk 0:02:53]}  Bf6 {[%clk 0:03:00]} 9. Nbd2 {[%clk 0:02:44]}  c5 {[%clk 0:02:47]} 10. e3 {[%clk 0:02:37]}  Nc6 {[%clk 0:02:42]} 11. a3 {[%clk 0:02:04]}  Qe8 {[%clk 0:02:40]} 12. Qc2 {[%clk 0:02:02]}  Nxd2 {[%clk 0:02:39]} 13. Qxd2 {[%clk 0:01:59]}  e5 {[%clk 0:02:39]} 14. dxe5 {[%clk 0:01:47]}  dxe5 {[%clk 0:02:38]} 15. Qd5+ {[%clk 0:01:29]}  Be6 {[%clk 0:02:38]} 16. Qxc5 {[%clk 0:01:26]}  e4 {[%clk 0:02:38]} 17. Nd4 {[%clk 0:01:02]}  Ne5 {[%clk 0:02:33]} 18. Nxe6 {[%clk 0:00:55]}  Qxe6 {[%clk 0:02:30]} 19. Bxe5 {[%clk 0:00:47]}  Bxe5 {[%clk 0:02:28]} 20. Rad1 {[%clk 0:00:41]}  Kh8 {[%clk 0:02:19]} 21. Rd5 {[%clk 0:00:38]}  Rfe8 {[%clk 0:02:15]} 22. Rfd1 {[%clk 0:00:36]}  Bc3 {[%clk 0:02:00]} 23. Rxf5 {[%clk 0:00:24]}  Rac8 {[%clk 0:01:50]} 24. Qd5 {[%clk 0:00:24]}  Qe7 {[%clk 0:01:24]} 25. Qd6 {[%clk 0:00:20]}  Qxd6 {[%clk 0:00:33]} 26. Rxd6 {[%clk 0:00:21]}  Rcd8 {[%clk 0:00:34]} 27. Rfd5 {[%clk 0:00:21]}  Rc8 {[%clk 0:00:29]} 28. a4 {[%clk 0:00:20]}  h6 {[%clk 0:00:27]} 29. Rd7 {[%clk 0:00:19]}  Rb8 {[%clk 0:00:25]} 30. Rc7 {[%clk 0:00:19]}  a5 {[%clk 0:00:25]} 31. Rdd7 {[%clk 0:00:18]}  b6 {[%clk 0:00:24]} 32. Re7 {[%clk 0:00:18]}  Rxe7 {[%clk 0:00:18]} 33. Rxe7 {[%clk 0:00:18]}  Rd8 {[%clk 0:00:19]} 34. Rxe4 {[%clk 0:00:16]}  Rd1+ {[%clk 0:00:17]} 35. Bf1 {[%clk 0:00:16]}  Rb1 {[%clk 0:00:17]} 36. Re8+ {[%clk 0:00:15]}  Kh7 {[%clk 0:00:17]} 37. Rb8 {[%clk 0:00:14]}  Kg6 {[%clk 0:00:11]} 38. Rxb6+ {[%clk 0:00:13]}  Kg5 {[%clk 0:00:10]} 39. Kg2 {[%clk 0:00:14]}  Bb4 {[%clk 0:00:10]} 40. Rb5+ {[%clk 0:00:14]}  Kf6 {[%clk 0:00:09]} 41. c5 {[%clk 0:00:14]}  Rxb3 {[%clk 0:00:09]} 42. c6 {[%clk 0:00:12]}  Rc3 {[%clk 0:00:09]} 43. Rb6 {[%clk 0:00:10]}  Ke7 {[%clk 0:00:08]} 44. Bb5 {[%clk 0:00:10]}  Kd8 {[%clk 0:00:00]} 45. Rb7 {[%clk 0:00:10]} 1-0

[Event "January 2 Early 2024"]
[Site "https://www.chess.com"]
[Date "2024.01.02"]
[Round "9"]
[White "Mendez Fortes, Eduardo Jesus"]
[Black "Crocker, Philip J"]
[Result "1-0"]
[Board "172"]
[TimeControl "180+1"]
[WhiteFideId "3502376"]
[BlackFideId "403180"]
[WhiteElo "2567"]
[BlackElo "2065"]
[WhiteTeam "CUB"]
[BlackTeam "ENG"]
[WhiteClock "0:02:10"]
[BlackClock "0:00:16"]

1. e4 {[%clk 0:02:53]}  d6 {[%clk 0:02:57]} 2. d4 {[%clk 0:02:52]}  Nf6 {[%clk 0:02:57]} 3. Nc3 {[%clk 0:02:52]}  g6 {[%clk 0:02:58]} 4. f4 {[%clk 0:02:52]}  Bg7 {[%clk 0:02:55]} 5. Nf3 {[%clk 0:02:52]}  c5 {[%clk 0:02:55]} 6. Bb5+ {[%clk 0:02:51]}  Bd7 {[%clk 0:02:53]} 7. e5 {[%clk 0:02:52]}  Ng4 {[%clk 0:02:51]} 8. Bxd7+ {[%clk 0:02:49]}  Qxd7 {[%clk 0:02:48]} 9. d5 {[%clk 0:02:49]}  dxe5 {[%clk 0:02:46]} 10. h3 {[%clk 0:02:49]}  e4 {[%clk 0:02:43]} 11. hxg4 {[%clk 0:02:50]}  exf3 {[%clk 0:02:43]} 12. Qxf3 {[%clk 0:02:51]}  Na6 {[%clk 0:02:38]} 13. Bd2 {[%clk 0:02:52]}  O-O-O {[%clk 0:02:33]} 14. O-O-O {[%clk 0:02:50]}  f5 {[%clk 0:02:32]} 15. gxf5 {[%clk 0:02:47]}  Qxf5 {[%clk 0:02:24]} 16. g4 {[%clk 0:02:46]}  Qf7 {[%clk 0:02:16]} 17. Kb1 {[%clk 0:02:38]}  Kb8 {[%clk 0:02:10]} 18. Qe4 {[%clk 0:02:32]}  Nc7 {[%clk 0:02:06]} 19. f5 {[%clk 0:02:31]}  Nxd5 {[%clk 0:01:57]} 20. Nxd5 {[%clk 0:02:29]}  Rxd5 {[%clk 0:01:53]} 21. Bf4+ {[%clk 0:02:28]}  Rd6 {[%clk 0:01:41]} 22. Bxd6+ {[%clk 0:02:26]}  exd6 {[%clk 0:01:41]} 23. Rxd6 {[%clk 0:02:26]}  gxf5 {[%clk 0:01:29]} 24. Qxf5 {[%clk 0:02:24]}  Qc4 {[%clk 0:01:20]} 25. Rd7 {[%clk 0:02:19]}  Qb4 {[%clk 0:00:47]} 26. Rxg7 {[%clk 0:02:15]}  Re8 {[%clk 0:00:16]} 27. Re7 {[%clk 0:02:10]} 1-0